Cogmind - Beta 14 @@@ ROGUE MODE // 2024.10.07 @ 06:10:08 Player: Harmony Result: Destroyed by G-47 Trooper with Particle Gun Performance ------------- Evolutions (0) 0 Regions Visited (1) 200 Robots Destroyed (8) 40 Value Destroyed (181) 181 Prototype IDs (0) 0 Alien Tech Used (0) 0 Bonus (0) 0 TOTAL SCORE: 421 Bonus ------- None Cogmind --------- Core Integrity 0/250 Matter 134/300 Energy 71/100 System Corruption 0% Temperature Danger (441) Movement Core (250) Ox4 Location -10/Materials Parts ------- > --- POWER (1) -------- (None) > --- PROPULSION (2) --- (None) > --- UTILITY (2) ------ Medium Storage Unit Structural Scanner > --- WEAPON (2) ------- Medium Laser Datajack > --- INVENTORY (10) --- Flight Unit Light Armor Plating Light Armor Plating Grenade Launcher Datajack Peak State ------------ > --- POWER ------------ Light Ion Engine > --- PROPULSION ------- Wheel Wheel > --- UTILITY ---------- Light Armor Plating Light Armor Plating > --- WEAPON ----------- Medium Laser Medium Laser > --- INVENTORY -------- Aluminum Leg Medium Laser Small Laser [Rating: 7] Favorites ----------- Power Light Ion Engine Engine Light Ion Engine Propulsion Wheel Wheel Wheel Utility Medium Storage Unit Device Structural Scanner Storage Medium Storage Unit Protection Light Armor Plating Weapon Medium Laser Energy Gun Medium Laser Launcher Grenade Launcher Special Melee Weapon Datajack Build | -11 -10 ------- Run | Yrd Mat Slots Evolved . | . . Power . | . . Propulsion . | . . Utility . | . . Weapon . | . . Parts Attached 21 | 5 16 Power 1 | 1 . Engine 1 | 1 . Core . | . . Reactor . | . . Propulsion 2 | 2 . Treads . | . . Leg . | . . Wheel 2 | 2 . Hover . | . . Flight . | . . Utility 5 | . 5 Device 2 | . 2 Storage 1 | . 1 Processor . | . . Hackware . | . . Protection 2 | . 2 Artifact . | . . Weapon 13 | 2 11 Energy Gun 6 | 2 4 Energy Cannon . | . . Ballistic Gun . | . . Ballistic Cannon . | . . Launcher 3 | . 3 Special Weapon . | . . Impact Weapon . | . . Slashing Weapon . | . . Piercing Weapon . | . . Special Melee Weapon 4 | . 4 Unidentified Prototypes . | . . Parts Lost 4 | . 4 Power 1 | . 1 Propulsion 2 | . 2 Utility . | . . Weapon 1 | . 1 Highest Loss Streak 4 | . 4 To Critical Strikes . | . . Average Slot Usage (%) 97 | . 97 Engine 14 | . 14 Wheel 27 | . 27 Device 7 | . 7 Storage 10 | . 10 Protection 9 | . 9 Energy Gun 17 | . 17 Launcher 9 | . 9 Special Melee Weapon 1 | . 1 Peak Build Rating 7 | 5 7 Average Rating 6 | 3 6 On Entrance 2 | . 5 Naked Turns . | . . Heaviest Build 21 | 7 21 Greatest Support 20 | 20 20 Greatest Overweight (x) 5 | . 5 Average Overweight (x) . | . . Largest Inventory Capacity 10 | 5 10 Average Capacity 7 | 5 8 Most Carried 7 | 3 7 Average Carried 4 | 1 4 Final Capacity 10 | 5 10 Final Carried 5 | 3 5 Class Distribution -------------------- 100% | Mutant Dominant Class ---------------- Mutant | -10/Materials Resources | -11 -10 ----------- Run | Yrd Mat Matter Collected 264 | 250 14 Remotely . | . . Salvage Created 193 | 47 146 Parts 18 | 2 16 Haulers Intercepted . | . . Recyclers Shooed . | . . Parts Field Recycled . | . . Retrieved Matter . | . . Parts Self-Destructed . | . . Prevented . | . . Kills | -11 -10 ------- Run | Yrd Mat Combat Hostiles Destroyed 7 | 1 6 Guns 4 | 1 3 AOE 3 | . 3 Classes Destroyed 3 | 1 2 Builder 1 | . 1 Swarmer 3 | . 3 Grunt 4 | 1 3 Best Kill Streak 3 | 1 3 Combat Bots Only 3 | 1 3 Max Kills in Single Turn 2 | 1 2 Gunslinging . | . . Exploded 2 | . 2 Melee . | . . Uniques/NPCs Destroyed . | . . Combat | -11 -10 -------- Run | Yrd Mat Hostile Shots Fired 59 | 2 57 Missed 14 | . 14 Damage Taken 605 | 20 585 Core 266 | 10 256 Absorbed by Shields . | . . Core Remaining (%) 96 | 96 . Volleys Fired 28 | 2 26 Largest 2 | 2 2 Hottest 100 | 100 100 Shots Fired 46 | 4 42 Gun 42 | 4 38 Cannon . | . . Launcher 4 | . 4 Special . | . . Kinetic . | . . Thermal 42 | 4 38 Explosive 4 | . 4 Electromagnetic . | . . Robot Hit Streak 15 | 3 15 Robot Miss Streak 5 | . 5 Penetration Max . | . . Secondary Targets . | . . Shots Hit Robots 29 | 3 26 Core Hits 14 | 2 12 Critical Kills . | . . Critical Parts Destroyed . | . . Critical Strikes 3 | . 3 Burn 3 | . 3 Melee Attacks . | . . Impact . | . . Slashing . | . . Piercing . | . . Sneak Attacks . | . . Combat Hostiles . | . . Follow-up Attacks . | . . Damage Inflicted 467 | 37 430 Guns 322 | 37 285 Cannons . | . . Explosions 145 | . 145 Melee . | . . Ramming . | . . Kinetic . | . . Thermal 322 | 37 285 Explosive 145 | . 145 Electromagnetic . | . . Impact . | . . Slashing . | . . Piercing . | . . Highest Corruption . | . . Average Corruption . | . . Corruption Purged . | . . Corruption Blocked . | . . Overload Shots . | . . Overflow Damage . | . . Projectiles . | . . Explosions . | . . Melee . | . . Knockbacks . | . . Impact . | . . Kinetic . | . . Secondary . | . . Self-Inflicted Damage 46 | . 46 Shots 2 | . 2 Rammed . | . . Targets Rammed . | . . Kicked . | . . Crushed . | . . Highest Temperature 587 | 90 587 Average Temperature 249 | 49 272 Received Heat Transfer 300 | 12 288 Effects 16 | . 16 Shutdowns 3 | . 3 Energy Bleed 1 | . 1 Interference 3 | . 3 Short Circuit 2 | . 2 Damage (minor) 3 | . 3 Damage (major) 3 | . 3 Damage (core) 1 | . 1 Siege Activations . | . . Robots Corrupted . | . . Combat Hostiles . | . . Parts Fried . | . . Impact Corruptions . | . . Robots Melted . | . . Combat Hostiles . | . . Parts Melted 1 | . 1 Heat Transferred 1184 | 111 1073 Parts Sabotaged . | . . Parts Stolen . | . . Parts Stripped . | . . Power Chain Reactions . | . . Alert | -11 -10 ------- Run | Yrd Mat Peak Influence 257 | 20 257 Initial 13 | . 13 Average 102 | 3 131 Maximum Alert Level 1 | . 1 Low Security (%) 78 | 100 72 Level 1 21 | . 27 Level 2 . | . . Level 3 . | . . Level 4 . | . . Level 5 . | . . High Security . | . . Max Security . | . . Squads Dispatched 3 | . 3 Investigation 2 | . 2 Extermination . | . . Reinforcement 1 | . 1 Assault . | . . Garrison . | . . Intercept . | . . Searches Triggered . | . . Construction Impeded . | . . Haulers Reinforced . | . . Active Scanning Responses . | . . Cargo Convoy Interrupts . | . . Stealth | -11 -10 --------- Run | Yrd Mat Distress Signals . | . . Communications Jammed . | . . Distress Signals . | . . Times Spotted 13 | 1 12 Peak Tracking Total 5 | 1 5 Tactical Retreats . | . . Traps | -11 -10 ------- Run | Yrd Mat Traps Triggered 1 | . 1 Indirectly . | . . Trap Hack Attempts . | . . Triggered . | . . Disarmed . | . . Reprogrammed . | . . Reused . | . . Traps Extracted . | . . Installed . | . . Triggered . | . . Machines | -11 -10 ---------- Run | Yrd Mat Machines Disabled 1 | . 1 Max in Single Turn 1 | . 1 Machines Repaired . | . . Machines Dismantled . | . . Machines Sabotaged . | . . Overloaded Fab Kills . | . . Hacking | -11 -10 --------- Run | Yrd Mat Machines Accessed 4 | . 4 Terminals 3 | . 3 Fabricators . | . . Repair Stations 1 | . 1 Recycling Units . | . . Scanalyzers . | . . Garrison Access . | . . Total Hacks 13 | . 13 Successful 7 | . 7 Failed 6 | . 6 Catastrophic . | . . Database Lockouts . | . . Manual . | . . Terminals 12 | . 12 Fabricators . | . . Repair Stations 1 | . 1 Recycling Units . | . . Scanalyzers . | . . Garrison Access . | . . Terminal Hacks 7 | . 7 Record 4 | . 4 Robot Analysis 1 | . 1 Alert Level 2 | . 2 Fabricator Hacks . | . . Repair Station Hacks . | . . Recycling Unit Hacks . | . . Scanalyzer . | . . Garrison Access Hacks . | . . Unauthorized Hacks . | . . Terminals . | . . Fabricators . | . . Repair Stations . | . . Recycling Units . | . . Scanalyzers . | . . Garrison Access . | . . Data Cores Recovered . | . . Used . | . . Hacking Detections 3 | . 3 Full Trace Events 2 | . 2 Feedback Events . | . . Feedback Blocked . | . . Robot Schematics Acquired . | . . Robots Built . | . . Authchips . | . . Time . | . . Total Robot Build Rating . | . . Part Schematics Acquired . | . . Parts Built . | . . Authchips . | . . Time . | . . Total Part Build Rating . | . . Parts Repaired . | . . Time . | . . Parts Recycled . | . . Recycled Matter . | . . Retrieved Matter . | . . Retrieved Components . | . . Parts Scanalyzed . | . . Part Schematics Acquired . | . . Parts Damaged . | . . Bothacking | -11 -10 ------------ Run | Yrd Mat Used RIF Installer . | . . Robots Hacked . | . . Non-combat . | . . Combat . | . . Robot Hacks Applied . | . . Relay Couplers Released . | . . Fabnet Peak Effective % . | . . Robots Rewired . | . . Allies Hacked . | . . Hacks Repelled . | . . Allies | -11 -10 -------- Run | Yrd Mat Total Allies . | . . Largest Group . | . . Highest-Rated Group . | . . Highest-Rated Ally . | . . Total Orders . | . . Ally Attacks . | . . Total Damage . | . . Kills . | . . Allies Corrupted . | . . Allies Melted . | . . Intel | -11 -10 ------- Run | Yrd Mat Robot Analysis Total 1 | . 1 Derelict Logs Recovered . | . . Drone Launches . | . . Drone Recoveries . | . . Exploration | -11 -10 ------------- Run | Yrd Mat Turns Passed 363 | 80 283 Spaces Moved 289 | 84 205 Core 25 | 22 3 Treads . | . . Legs . | . . Wheels 264 | 62 202 Hover . | . . Flight . | . . Fastest Speed 50 | 50 80 Average Speed 82 | 72 87 Slowest Speed 300 | 80 300 Overloaded Moves . | . . Propulsion Burnouts . | . . Robots Hopped . | . . Cave-ins Triggered . | . . Exploration Rate (%) 20 | 5 36 Regions Visited 1 Branch Regions . Pre-discovered Areas . | . . Known Exits Taken . | . . Unknown Exits Taken 1 | 1 . Scrap Searched . | . . Spaces Dug . | . . Terrain Destroyed 22 | . 22 Melee . | . . Projectile . | . . AOE 22 | . 22 Terrain Rammed . | . . Walls Destroyed . | . . Machines Disabled . | . . Actions | -11 -10 --------- Run | Yrd Mat Total 362 | 99 263 Wait 4 | 1 3 Move 288 | 83 205 Hop . | . . Pick Up 17 | 8 9 Fast Attach . | . . Attach 8 | 5 3 Detach . | . . Swap 13 | . 13 Drop 4 | . 4 Fire 28 | 2 26 Melee . | . . Ram . | . . Kick . | . . Crush . | . . Escape Stasis . | . . Rewire . | . . Trap . | . . Miscellaneous . | . . Route ------- -11/Scrapyard -10/Materials (discovered 1 exit: [*Mat]) History --------- Turn | Location | Event 2 | -11/Scrapyard | Met Revision 17 58 | -11/Scrapyard | Discovered new exit (range 8) 81 | -11/Scrapyard | Entered Materials 269 | -10/Materials | Discovered new exit (range 7) 323 | -10/Materials | Build established: Mutant 343 | -10/Materials | Core integrity fell below 50% 353 | -10/Materials | Core integrity fell below 20% 364 | -10/Materials | Destroyed by G-47 Trooper with Particle Gun Last Messages --------------- (-13). 00351_ Overheating: Grenade Launcher damaged (-5). 00353_ Power failure, Lgt. Ion Engine shutdown. 00355_ U-05 Engineer suffers critical hit (Burn). 00355_ U-05 Engineer destroyed. 00357_ Overheating: System interference. 00357_ Med. Laser temporarily disabled. 00359_ U-05 Engineer lays Concrete. 00359_ K-01 Serf collects debris. 00360_ Overheating: System interference. 00360_ Datajack temporarily disabled. 00360_ Structural Scanner temporarily disabled. 00360_ Lgt. Ion Engine destroyed. 00360_ Broken Wheel destroyed. 00360_ U-05 Engineer lays Concrete. 00363_ K-01 Serf collects debris. 00363_ U-05 Engineer lays Concrete. [Achievement: First Step to Greatness] Map ----- +----------------------------------------------------+ | ?????????????????????????????????????????????????? | | ????????????????????????????????????????????? ??? | | ?????????????????????????????## ???????? ??? | | ?????????????????????????????## ???????? ##? | | ?????????????????????????????## ???????? ##? | | ?????????????????????????????## ???????? ##? | | ?????????????????????????????## ?????? ##? | | ?????????????????????????????## ##??????## ##? | | ?????????????????????????????## ##??????## ##? | | ??????????????????????????##### ########## ##? | | ??????????????????????????##### ########## ##? | | ?????????????????????????? # # ##? | | ????????????????????????????? # T """ # ##? | | ???????????????????????? # """ # ##? | | ????????????????????????######## # """ #*%##? | | ????????????????????????## /// # # # =### | | ????????????????????????## / # # """ + ### | | ????????????????????????## / # """ #! T## | | ????????????????????????## # """ # ### | | ????????????????????????## / ## | | ????????????????????????## # ########### ## | | ????????????????????????## #######* ## | | ?????????# ? "######### # < ##??## ## | | ?????????## ###############+## u ##??### ### | | ?????????## ^ k T g ########### ### | | ?????????## [ @ % g # + ##? | | ?????????## !%[ !# """ # ##? | | ?????????## """"" "%""% u =%+ "Y??# ##? | | ???????? ^ """"" """"" !!# ?# ##? | | ???????????????""""" """"" ########?# ##? | | ??????????? """""^ """"" #########?# ##? | | ?????????# ?"""" """"" #?# ##? | | ?????????# """"" """"" #?# #?? | | ?????????# "??"" ""?"" ###+### | | ????????? ?? ?? # | | ?????????? ??? ?? # """ | | ??????????# ""?"" """"" ########## # R" | | ??????????# """"" """"" ## ## # """ | | ??????????# """"" """"" ## """ ## # | | ??????????# """"" """"" ## """ ## # | | ??????????# """"" " """= ## """ ## + | | ??????????# """"" " %* ## ## # """ | | ??????????# """"" "" =[ ## ## # """ | | ??????????# #####+#### # """ | | ??????????# # """ | | ??????????# #### # """ | | ######### ######### # ### ####+###### # | | # """ ##### # ### ##+#### | | + """ #??## # T ### #??? | | ########### # """ =!#??## #### ### #??? | +----------------------------------------------------+ Best States ------------- Heat Dissipation 25 Energy Generation 10 Energy Capacity 125 Matter Stores 300 Matter Capacity 300 Sight Range 16 Terrain Scan Density 10 Armor Coverage 300 Evasion (%) 50 Item Schematics ----------------- None Robot Schematics ------------------ None Fabricated ------------ Nothing Alien Tech Used ----------------- None Achievements -------------- Crack Shot First Step to Greatness Let's See Who's Tougher One Hack Too Far Storm Trooper Uninvited Guest Challenges ------------ None Game ------ Seed MicroDroneHammer Manual? 0 Play Time 00:23:07 Cumulative 0.3 hours Start 2024.10.07 @ 05:44:29 End 2024.10.07 @ 06:10:08 Sessions 1 Manual Loads 0 Difficulty Rogue Special Mode None Game No. 1 Rogue 1 Adventurer 0 Explorer 0 Win Type - Total 0 Types 0/0/0/0/0/0/0/0/0 Lore% 0 Gallery% 0 Achievement% 2 Wizard Run 0 Options --------- Layout 1 ASCII 0 Keyboard 0 Movement Arrows Keybinds 0 Fullscreen 2 Font 32/SmallcapsGlow Map View 50x35 Zoom Use 5% Tactical HUD 1 Map Filters NONE Filters NONE Steam 1 RUN: 7e3d93a1-58e8-4d2e-9afe-74f8e72cd01a